fUSD/lending_fUSD_20251105
["ID","MTS","AMOUNT","RATE_DAILY","PERIOD"]
[393230156,1762356640829,-151.0,0.00017584,2]
[393230157,1762356640839,-7560.6963225,0.00017587,2]
[393230158,1762356640849,-13734.1692412,0.00017587,2]
[393230159,1762356640859,-2311.3481939,0.00017587,2]
[393230160,1762356640869,-28132.9518299,0.00017587,2]
[393230161,1762356640878,-400.29587645,0.0001759,2]
[393230162,1762356640887,-500.0,0.00017599,2]
[393230163,1762356640897,-300.0,0.00017599,2]
[393230164,1762356640907,-300.0,0.00017599,2]
[393230165,1762356640917,-666.0,0.00017599,2]
[393230166,1762356640927,-300.0,0.00017599,2]
[393230167,1762356640936,-666.0,0.00017599,2]
[393230168,1762356640946,-1000.0,0.000176,2]
[393230169,1762356640956,-741.74515475,0.000176,2]
[393230170,1762356640965,-200.0,0.000176,2]
[393230171,1762356640975,-151.0,0.000176,2]
[393230172,1762356640985,-151.0,0.000176,2]
[393230173,1762356640995,-156.050326,0.000176,2]
[393230174,1762356641005,-114274.19518059,0.000176,2]
[393230175,1762356641018,-2542.97031152,0.000176,2]
[393230176,1762356641030,-16419.80863721,0.000176,2]
[393230177,1762356641042,-2987.2,0.000176,2]
[393230178,1762356641055,-265.47499985,0.000176,2]
[393230179,1762356641066,-300.35996914,0.000176,2]
[393230180,1762356641079,-42903.3181343,0.000176,2]
[393230182,1762356641090,-252.636388,0.000176,2]
[393230189,1762356643095,-157.309178,0.000176,2]
[393230190,1762356643105,-217.9565822,0.000176,2]
[393230199,1762356646196,-1478.1298378,0.000176,2]
[393230200,1762356646206,-1696.08643,0.000176,2]
[393230201,1762356646218,-1696.08643,0.000176,2]
[393230202,1762356646229,-1696.08643,0.000176,2]
[393230203,1762356646239,-201.24482811,0.000176,2]
[393230204,1762356646385,-1494.84160189,0.000176,2]
[393230205,1762356646396,-151.0,0.000176,2]
[393230206,1762356646406,-370.87257738,0.000176,2]
[393230207,1762356646416,-4010.40028996,0.000176,2]
[393230221,1762356660927,200.0,0.00016806,2]
[393230224,1762356677259,200.0,0.00016651,2]
[393230226,1762356689080,244.2,0.00016591,2]
[393230227,1762356693287,3479.586,0.00016954,2]
[393230228,1762356693345,195.064,0.00016954,2]
[393230262,1762356898765,150.0,0.0001637,2]
[393230263,1762356898986,150.0,0.0001637,120]
[393230264,1762356964176,498.6163,0.00016899,2]
[393230283,1762357040177,10000.01,0.0001634,2]
[393230284,1762357040203,1687.31,0.0001634,2]
[393230285,1762357049734,1035.9444,0.00016899,2]
[393230288,1762357094425,500.0,0.00016356,2]
[393230290,1762357133519,500.0,0.00016899,2]
[393230291,1762357194038,500.0,0.00016356,2]
[393230292,1762357194530,500.0,0.00016356,2]
[393230294,1762357369368,192.22,0.00013007,2]
[393230306,1762357459642,1000.0,0.000167,2]
[393230307,1762357468980,1000.0,0.000165,2]
[393230308,1762357478210,1000.0,0.000162,2]
[393230315,1762357526369,2161.64,0.0001626,2]
[393230467,1762357712087,-318.52755499,0.00016236,2]
[393230476,1762357786609,-154.50244501,0.00016236,2]
[393230477,1762357786630,-235.86870532,0.00016257,2]
[393230495,1762357832236,-14.13129468,0.00016257,2]
[393230496,1762357832245,-398.45,0.00016438,2]
[393230497,1762357832255,-195.0,0.00016613,2]
[393230498,1762357832264,-73.41870532,0.00016658,2]
[393230499,1762357832275,-226.58129468,0.00016658,2]
[393230500,1762357832286,-250.34339822,0.00016658,2]
[393230501,1762357832297,-277.35679052,0.0001699,2]
[393230502,1762357832306,-195.0,0.00016994,2]
[393230503,1762357832315,-343.5309302,0.00016994,2]
[393230504,1762357832325,-300.0,0.00016998,2]
[393230505,1762357832334,-300.0,0.00016998,2]
[393230506,1762357832343,-1200.0,0.00016998,2]
[393230507,1762357832352,-190.35713411,0.00016999,2]
[393230508,1762357832551,-1009.64286589,0.00016999,2]
[393230509,1762357832560,-57.13773471,0.00016999,2]
[393230510,1762357832575,-492.86226529,0.00016999,2]
[393230511,1762357832585,-23966.99081297,0.00017,2]
[393230512,1762357832594,-250.0,0.00017,2]
[393230513,1762357832603,-220.30341903,0.00017023,2]
[393230514,1762357832613,-279.6991,0.00017073,2]
[393230515,1762357832622,-207.201,0.00017097,2]
[393230516,1762357832631,-3105.509,0.00017097,2]
[393230517,1762357832640,-5052.6671066,0.000171,2]
[393230518,1762357832650,-1000.0,0.00017124,2]
[393230519,1762357832659,-7218.066,0.00017125,2]
[393230520,1762357832668,-2640.0,0.00017143,2]
[393230521,1762357832677,-9999.99,0.00017173,2]
[393230522,1762357832686,-9999.99,0.00017173,2]
[393230523,1762357832695,-9999.99,0.00017173,2]
[393230524,1762357832704,-9999.99,0.00017173,2]
[393230525,1762357832713,-150.99,0.00017173,2]
[393230526,1762357832723,-580.92,0.00017173,2]
[393230528,1762357832731,-532.2352,0.00017178,2]
[393230530,1762357832741,-507.0,0.00017178,2]
[393230532,1762357832752,-567.69,0.00017198,2]
[393230533,1762357832766,-4728.59827169,0.000172,2]
[393230534,1762357832778,-815.74192831,0.000172,2]
[393230535,1762357832788,-5000.0,0.000172,2]
[393230536,1762357832797,-164.21753462,0.000172,2]
[393230537,1762357832806,-165.27514538,0.000172,2]
[393230538,1762357832815,-2500.0,0.000172,2]
[393230539,1762357832825,-627.00602811,0.00017212,2]
[393230540,1762357832836,-1217.75699061,0.00017212,2]
[393230541,1762357832847,-2640.0,0.00017225,2]
[393230542,1762357832856,-500.0,0.00017262,2]
[393230543,1762357832867,-500.0,0.00017262,2]
[393230544,1762357832876,-500.0,0.00017262,2]
[393230545,1762357832885,-500.0,0.00017262,2]
[393230546,1762357832894,-500.0,0.00017262,2]
[393230547,1762357832903,-500.0,0.00017262,2]
[393230548,1762357832912,-500.0,0.00017262,2]
[393230549,1762357832921,-500.0,0.00017262,2]
[393230550,1762357832930,-346.92554585,0.00017262,2]
[393230551,1762357832940,-500.0,0.00017262,2]
[393230552,1762357832949,-500.0,0.00017262,2]
[393230553,1762357832958,-500.0,0.00017262,2]
[393230554,1762357832968,-500.0,0.00017273,2]
[393230555,1762357832977,-500.0,0.00017273,2]
[393230556,1762357832986,-168.08513591,0.00017273,2]
[393230557,1762357832995,-500.0,0.00017273,2]
[393230558,1762357833004,-500.0,0.00017273,2]
[393230559,1762357833013,-500.0,0.00017273,2]
[393230560,1762357833023,-642.09411341,0.00017273,2]
[393230561,1762357833032,-500.0,0.00017273,2]
[393230562,1762357833041,-500.0,0.00017273,2]
[393230563,1762357833050,-500.0,0.00017273,2]
[393230564,1762357833060,-500.0,0.00017273,2]
[393230565,1762357833069,-500.0,0.00017273,2]
[393230566,1762357833079,-500.57720121,0.00017273,2]
[393230567,1762357833088,-500.0,0.00017273,2]
[393230568,1762357833098,-500.0,0.00017273,2]
[393230569,1762357833107,-500.0,0.00017273,2]
[393230570,1762357833117,-506.7793708,0.00017273,2]
[393230571,1762357833126,-500.0,0.00017273,2]
[393230572,1762357833135,-500.0,0.00017273,2]
[393230573,1762357833145,-500.0,0.00017273,2]
[393230574,1762357833159,-501.70104334,0.00017273,2]
[393230575,1762357833168,-500.0,0.00017273,2]
[393230576,1762357833178,-500.0,0.00017273,2]
[393230577,1762357833187,-174.55969353,0.00017288,2]
[393230578,1762357833198,-174.55969353,0.00017288,2]
[393230579,1762357833207,-181.91466221,0.00017289,2]
[393230580,1762357833216,-262.0,0.00017295,2]
[393230581,1762357833227,-151.0,0.00017297,2]
[393230582,1762357833236,-151.0,0.00017297,2]
[393230583,1762357833249,-241.81998529,0.00017299,2]
[393230584,1762357833264,-287.05331371,0.00017299,2]
[393230585,1762357833273,-500.0,0.00017299,2]
[393230586,1762357833283,-445.75069444,0.00017299,2]
[393230587,1762357833294,-500.0,0.00017299,2]
[393230588,1762357833303,-302.63766833,0.00017299,2]
[393230589,1762357833313,-500.0,0.00017299,2]
[393230590,1762357833323,-500.0,0.00017299,2]
[393230591,1762357833332,-500.0,0.00017299,2]
[393230592,1762357833342,-893.58488772,0.00017299,2]
[393230593,1762357833351,-23323.03187856,0.000173,2]
[393230594,1762357833364,-758.63860304,0.000173,2]
[393230595,1762357833376,-533.7134,0.000173,2]
[393230596,1762357833387,-4150.7556728,0.000173,2]
[393230597,1762357833399,-363.37178527,0.000173,2]
[393230598,1762357833417,-3673.29706504,0.000173,2]
[393230599,1762357833428,-2237.07352637,0.000173,2]
[393230600,1762357833439,-630.31,0.000173,2]
[393230601,1762357833451,-669.8025764,0.000173,2]
[393230602,1762357833462,-7272.80000002,0.000173,2]
[393230603,1762357833474,-6856.58264168,0.000173,2]
[393230611,1762357838198,-517.80618496,0.00017122,2]
[393230612,1762357838208,-500.0,0.00017122,2]
[393230613,1762357838218,-500.0,0.00017122,2]
[393230614,1762357838228,-500.0,0.00017122,2]
[393230615,1762357838241,-400.08313203,0.00017122,2]
[393230616,1762357838251,-500.0,0.00017122,2]
[393230617,1762357838261,-500.0,0.00017122,2]
[393230618,1762357838272,-500.0,0.00017122,2]
[393230619,1762357838282,-500.0,0.00017122,2]
[393230620,1762357838292,-500.0,0.00017122,2]
[393230621,1762357838304,-500.0,0.00017122,2]
[393230622,1762357838314,-500.0,0.00017122,2]
[393230623,1762357838324,-500.0,0.00017122,2]
[393230624,1762357838334,-500.0,0.00017122,2]
[393230625,1762357838345,-500.0,0.00017122,2]
[393230626,1762357838354,-500.0,0.00017122,2]
[393230627,1762357838364,-500.0,0.00017122,2]
[393230628,1762357838375,-500.0,0.00017122,2]
[393230629,1762357838384,-500.0,0.00017122,2]
[393230630,1762357838394,-500.0,0.00017122,2]
[393230631,1762357838404,-500.0,0.00017122,2]
[393230632,1762357838414,-500.0,0.00017122,2]
[393230633,1762357838423,-500.0,0.00017122,2]
[393230634,1762357838433,-500.0,0.00017122,2]
[393230635,1762357838443,-500.0,0.00017122,2]
[393230636,1762357838454,-500.0,0.00017122,2]
[393230637,1762357838464,-500.0,0.00017122,2]
[393230638,1762357838474,-500.0,0.00017122,2]
[393230639,1762357838484,-500.0,0.00017122,2]
[393230640,1762357838494,-500.0,0.00017122,2]
[393230641,1762357838504,-500.0,0.00017122,2]
[393230642,1762357838514,-500.0,0.00017122,2]
[393230643,1762357838524,-500.0,0.00017122,2]
[393230644,1762357838533,-500.0,0.00017122,2]
[393230645,1762357838543,-500.0,0.00017122,2]
[393230646,1762357838554,-242.11052206,0.00017122,2]
[393230647,1762357838564,-500.0,0.00017122,2]
[393230648,1762357838574,-500.0,0.00017122,2]
[393230649,1762357838584,-500.0,0.00017122,2]
[393230650,1762357838593,-500.0,0.00017122,2]
[393230651,1762357838603,-500.0,0.00017122,2]
[393230652,1762357838613,-444.0,0.00017142,2]
[393230653,1762357838623,-444.0,0.00017279,2]
[393230654,1762357838633,-1365.47186667,0.000173,2]
[393230661,1762357839168,-10986.76100657,0.000173,2]
[393230662,1762357839180,-26540.612,0.000173,2]
[393230663,1762357839264,-455.92799996,0.000173,2]
[393230664,1762357839276,-148627.65232921,0.000173,2]
[393230665,1762357839289,-4348.35289373,0.000173,2]
[393230666,1762357839303,-1601.4999,0.000173,2]
[393230667,1762357839316,-259.5593,0.000173,2]
[393230668,1762357839329,-5415.5,0.000173,2]
[393230669,1762357839346,-5248.1982042,0.000173,2]
[393230670,1762357839358,-1050.50000006,0.000173,2]
[393230671,1762357839371,-2025.2468724,0.000173,2]
[393230672,1762357839382,-33761.52660975,0.000173,2]
[393230678,1762357840243,-2126.0,0.000173,2]
[393230679,1762357840255,-739.97,0.000173,2]
[393230680,1762357840268,-13926.67665796,0.000173,2]
[393230681,1762357840280,-1824.62500001,0.000173,2]
[393230682,1762357840291,-1106.75756469,0.000173,2]
[393230683,1762357840368,-8173.821025,0.000173,2]
[393230684,1762357840378,-51252.9239051,0.000173,2]
[393230700,1762357840612,-1.7e-07,0.000173,2]
[393230703,1762357840651,-864.53379185,0.000173,2]
[393230705,1762357840662,-534.55,0.000173,2]
[393230706,1762357840672,-284420.97228821,0.000173,2]
[393230707,1762357840686,-2803.54797887,0.000173,2]
[393230708,1762357840697,-80123.4720358,0.000173,2]
[393230709,1762357840706,-1000.0,0.000173,2]
[393230710,1762357840716,-176.88,0.000173,2]
[393230711,1762357840727,-698.44,0.000173,2]
[393230712,1762357840740,-169.01,0.000173,2]
[393230713,1762357840750,-176.88,0.000173,2]
[393230714,1762357840759,-698.44,0.000173,2]
[393230715,1762357840769,-164.21753457,0.00017317,2]
[393230717,1762357840778,-2640.0,0.00017359,2]
[393230718,1762357840788,-221.75791629,0.00017389,2]
[393230719,1762357840798,-698.44,0.000174,2]
[393230721,1762357840808,-169.01,0.000174,2]
[393230722,1762357840817,-444.0,0.00017416,2]
[393230724,1762357840827,-736.65207,0.0001742,2]
[393230726,1762357840837,-330.55,0.0001742,2]
[393230728,1762357840847,-214.42,0.00017421,2]
[393230729,1762357840856,-165.27514537,0.00017433,2]
[393230730,1762357840866,-164.21753457,0.00017433,2]
[393230731,1762357840875,-699.82067501,0.00017446,2]
[393230732,1762357840884,-2640.0,0.00017447,2]
[393230733,1762357840894,-500.0,0.00017452,2]
[393230734,1762357840904,-567.69,0.00017472,2]
[393230735,1762357840913,-2640.0,0.00017475,2]
[393230736,1762357840922,-174.55969353,0.00017479,2]
[393230737,1762357840931,-174.55969353,0.00017479,2]
[393230738,1762357840940,-154.99846775,0.00017489,2]
[393230739,1762357840950,-249.07,0.00017499,2]
[393230740,1762357840960,-500.0,0.00017499,2]
[393230741,1762357840969,-500.0,0.00017499,2]
[393230742,1762357840979,-500.0,0.00017499,2]
[393230743,1762357840988,-162.23239827,0.00017499,2]
[393230744,1762357840998,-500.0,0.00017499,2]
[393230745,1762357841008,-500.0,0.00017499,2]
[393230746,1762357841018,-454.30359175,0.00017499,2]
[393230747,1762357841027,-4111.91705096,0.000175,2]
[393230748,1762357841037,-1396.88,0.000175,2]
[393230749,1762357841048,-698.44,0.000175,2]
[393230750,1762357841057,-698.44,0.000175,2]
[393230751,1762357841067,-698.44,0.000175,2]
[393230752,1762357841076,-698.44,0.000175,2]
[393230753,1762357841085,-698.44,0.000175,2]
[393230754,1762357841095,-698.44,0.000175,2]
[393230755,1762357841104,-698.44,0.000175,2]
[393230756,1762357841114,-698.44,0.000175,2]
[393230757,1762357841123,-698.44,0.000175,2]
[393230759,1762357841133,-698.44,0.000175,2]
[393230760,1762357841143,-477.03,0.000175,2]
[393230761,1762357841156,-788.5,0.000175,2]
[393230762,1762357841171,-169.01,0.000175,2]
[393230763,1762357841180,-837.01,0.000175,2]
[393230764,1762357841190,-169.01,0.000175,2]
[393230765,1762357841201,-1302.69,0.000175,2]
[393230766,1762357841210,-169.01,0.000175,2]
[393230767,1762357841219,-244.2,0.00017513,2]
[393230768,1762357841230,-736.65208,0.0001754,2]
[393230769,1762357841239,-164.21753457,0.0001755,2]
[393230770,1762357841249,-444.0,0.00017553,2]
[393230771,1762357841259,-2640.0,0.00017556,2]
[393230772,1762357841269,-171.53148357,0.00017561,2]
[393230773,1762357841279,-500.0,0.00017586,2]
[393230774,1762357841288,-400.29587645,0.0001759,2]
[393230775,1762357841299,-75145.3522285,0.00017596,2]
[393230776,1762357841308,-2311.3481939,0.00017596,2]
[393230777,1762357841318,-3054.916329,0.00017596,2]
[393230778,1762357841328,-72601.70353793,0.00017596,2]
[393230779,1762357841337,-3929.9868179,0.00017596,2]
[393230780,1762357841347,-158.72139,0.00017596,2]
[393230781,1762357841357,-151.0,0.00017596,2]
[393230782,1762357841366,-151.0,0.00017596,2]
[393230783,1762357841375,-157.249441,0.00017596,2]
[393230784,1762357841384,-151.0,0.00017596,2]
[393230785,1762357841393,-151.0,0.00017596,2]
[393230786,1762357841402,-151.0,0.00017596,2]
[393230787,1762357841412,-3570.5254125,0.00017596,2]
[393230788,1762357841421,-151.0,0.00017596,2]
[393230789,1762357841430,-151.90923,0.00017596,2]
[393230790,1762357841439,-153.340919,0.00017596,2]
[393230791,1762357841449,-151.0,0.00017596,2]
[393230792,1762357841458,-156.050326,0.00017596,2]
[393230793,1762357841467,-552.909948,0.00017596,2]
[393230794,1762357841477,-552.909948,0.00017596,2]
[393230795,1762357841488,-552.909948,0.00017596,2]
[393230796,1762357841498,-552.909948,0.00017596,2]
[393230797,1762357841507,-151.60162,0.00017596,2]
[393230798,1762357841517,-151.0,0.00017596,2]
[393230799,1762357841526,-151.0,0.00017596,2]
[393230800,1762357841536,-5078.42395375,0.00017598,2]
[393230801,1762357841546,-151.0,0.00017598,2]
[393230802,1762357841555,-300.0,0.00017599,2]
[393230803,1762357841565,-500.0,0.00017599,2]
[393230804,1762357841574,-500.0,0.00017599,2]
[393230805,1762357841584,-500.0,0.00017599,2]
[393230806,1762357841594,-500.0,0.00017599,2]
[393230807,1762357841604,-500.0,0.00017599,2]
[393230808,1762357841613,-500.0,0.00017599,2]
[393230809,1762357841625,-500.0,0.00017599,2]
[393230810,1762357841635,-500.0,0.00017599,2]
[393230811,1762357841795,-300.0,0.00017599,2]
[393230812,1762357841804,-288.84967882,0.00017599,2]
[393230813,1762357841814,-300.0,0.00017599,2]
[393230814,1762357841823,-666.0,0.00017599,2]
[393230815,1762357841832,-151.0,0.000176,2]
[393230816,1762357841842,-151.0,0.000176,2]
[393230817,1762357841851,-200.0,0.000176,2]
[393230818,1762357841860,-151.0,0.000176,2]
[393230819,1762357841869,-156.553726,0.000176,2]
[393230820,1762357841879,-845.76043447,0.000176,2]
[393230821,1762357841888,-151.0,0.000176,2]
[393230822,1762357841897,-166.787736,0.000176,2]
[393230823,1762357841906,-151.0,0.000176,2]
[393230824,1762357841915,-161.805327,0.000176,2]
[393230825,1762357841925,-552.909948,0.000176,2]
[393230826,1762357841934,-552.909948,0.000176,2]
[393230827,1762357841943,-552.909948,0.000176,2]
[393230828,1762357841952,-552.909948,0.000176,2]
[393230829,1762357841960,-151.0,0.000176,2]
[393230830,1762357841970,-151.0,0.000176,2]
[393230831,1762357841979,-151.0,0.000176,2]
[393230832,1762357841988,-372532.49059943,0.000176,2]
[393230841,1762357843288,-217.1379597,0.00017294,2]
[393230843,1762357843300,-422.88021723,0.000176,2]
[393230844,1762357843309,-151.0,0.000176,2]
[393230845,1762357843320,-18915.98182307,0.000176,2]
[393230846,1762357843331,-3659.0,0.000176,2]
[393230847,1762357843360,-36500.0,0.000176,2]
[393230848,1762357843372,-282.8725021,0.000176,2]
[393230849,1762357843383,-533.77400246,0.000176,2]
[393230850,1762357843413,-668.89793741,0.000176,2]
[393230851,1762357843432,-150.0,0.00017142,2]
[393230852,1762357843442,-6450.66041401,0.000176,2]
[393230853,1762357843621,-150.0,0.00017279,2]
[393230854,1762357843630,-145.843548,0.000176,2]
[393230871,1762357846317,-150.0,0.00017142,2]
[393230872,1762357846328,-213.07061349,0.00017279,2]
[393230874,1762357846338,-250.0,0.00017416,2]
[393230875,1762357846347,-211.44010862,0.000176,2]
[393230876,1762357846357,-8923.0053596,0.000176,2]
[393230877,1762357846397,-3549.178836,0.000172,2]
[393230878,1762357846600,-788.44741769,0.000172,2]
[393230879,1762357846610,-2318.40284191,0.000176,2]
[393230880,1762357846621,-4415.5174441,0.000176,2]
[393230881,1762357846632,-4642.23704531,0.000176,2]
[393230882,1762357846643,-844.61042729,0.000176,2]
[393230883,1762357846654,-877.89879315,0.000176,2]
[393230885,1762357952906,500.0,0.00017,6]
[393230886,1762357954847,1000.0,0.000171,6]
[393230887,1762357956949,1500.0,0.000172,6]
[393230888,1762357959068,2000.0,0.000173,6]
[393230889,1762357961166,2500.0,0.000174,6]
[393230890,1762358135883,-2751.0,0.00016731,2]
[393230891,1762358193046,4498.01,0.00016498,2]
[393230892,1762358193071,608.25,0.00016498,2]
[393230893,1762358300539,2000.0,0.00016292,2]
[393230894,1762358300561,2000.0,0.00016292,2]
[393230895,1762358300588,9391.76,0.00016292,2]
[393230896,1762358300614,10000.01,0.00016292,2]
[393230897,1762358300639,3140.02,0.00016292,2]
[393230900,1762358381832,1198.0,0.00016692,2]
[393230901,1762358450527,-166.67,0.00016836,2]
[393230994,1762358809008,150.0,0.00016178,2]
[393230995,1762358816235,166.66,0.00015369,2]
[393230996,1762358816698,166.66,0.00015693,2]
[393230997,1762358816903,166.66,0.00016016,2]
[393230998,1762358817151,166.66,0.0001634,2]
[393230999,1762358817362,166.66,0.00016664,2]
[393231001,1762358847064,427.36750851,0.000175,3]
[393231002,1762358862883,999.0,0.00016162,3]
[393231006,1762358953584,907.14328905,0.00016292,2]
[393231007,1762358953617,646.87160169,0.00016292,2]
[393231008,1762358953909,176.29,0.00016173,2]
[393231030,1762359032553,-182.50894319,0.00016898,2]
[393231031,1762359032563,-195.0,0.00016898,2]
[393231032,1762359032573,-300.0,0.00016898,2]
[393231033,1762359032582,-250.0,0.00016898,2]
[393231034,1762359032591,-408.66622863,0.00016898,2]
[393231035,1762359032603,-195.0,0.0001691,2]
[393231036,1762359032612,-166.66,0.00016987,2]
[393231037,1762359032621,-675.73186818,0.00016994,2]
[393231038,1762359032632,-1084.26813182,0.00016994,2]
[393231039,1762359032641,-1200.0,0.00017057,2]
[393231040,1762359032650,-1200.0,0.00017058,2]
[393231041,1762359032659,-201.0,0.00017058,2]
[393231042,1762359032668,-300.0,0.00017058,2]
[393231044,1762359032677,-300.0,0.00017058,2]
[393231046,1762359032687,-550.0,0.00017059,2]
[393231048,1762359032699,-4837.85062149,0.0001706,2]
[393231050,1762359032710,-4961.17,0.0001706,2]
[393231052,1762359032720,-150.99,0.0001706,2]
[393231053,1762359032730,-31274.25,0.0001706,2]
[393231054,1762359032739,-1760.0,0.00017082,2]
[393231055,1762359032749,-277.35679052,0.00017085,2]
[393231056,1762359032758,-454.15,0.00017093,2]
[393231057,1762359032768,-9999.99,0.00017095,2]
[393231058,1762359032778,-174.55969354,0.00017096,2]
[393231059,1762359032787,-2500.0,0.000171,2]
[393231060,1762359032796,-184.65136139,0.00017108,2]
[393231061,1762359032805,-5104.18321543,0.00017108,2]
[393231062,1762359032814,-7083.15401263,0.00017122,2]
[393231063,1762359032823,-619.433582,0.00017173,2]
[393231064,1762359032832,-500.0,0.00017173,2]
[393231065,1762359032841,-500.0,0.00017173,2]
[393231066,1762359032850,-526.17457653,0.00017173,2]
[393231067,1762359032861,-157.39973233,0.00017173,2]
[393231068,1762359032870,-500.0,0.00017173,2]
[393231069,1762359032879,-500.0,0.00017188,2]
[393231070,1762359032888,-500.0,0.00017188,2]
[393231071,1762359032897,-500.0,0.00017188,2]
[393231072,1762359032907,-500.0,0.00017188,2]
[393231074,1762359032916,-500.0,0.00017188,2]
[393231076,1762359032925,-500.0,0.00017188,2]
[393231078,1762359032934,-500.0,0.00017188,2]
[393231080,1762359032943,-500.0,0.00017188,2]
[393231082,1762359032953,-500.0,0.00017188,2]
[393231084,1762359032962,-500.0,0.00017188,2]
[393231086,1762359032971,-500.0,0.00017188,2]
[393231088,1762359032980,-5104.18321539,0.00017196,2]
[393231090,1762359032989,-169.27398971,0.00017199,2]
[393231092,1762359032998,-500.0,0.00017199,2]
[393231094,1762359033007,-200.9373196,0.00017199,2]
[393231095,1762359033016,-274.1386009,0.00017199,2]
[393231096,1762359033026,-527.28,0.00017199,2]
[393231097,1762359033035,-500.0,0.00017199,2]
[393231098,1762359033043,-500.0,0.00017199,2]
[393231099,1762359033053,-249.07,0.00017199,2]
[393231100,1762359033062,-500.0,0.00017199,2]
[393231101,1762359033071,-500.0,0.00017199,2]
[393231102,1762359033080,-500.0,0.00017199,2]
[393231103,1762359033089,-162.23239827,0.00017199,2]
[393231104,1762359033099,-500.0,0.00017199,2]
[393231105,1762359033110,-500.0,0.00017199,2]
[393231106,1762359033120,-194.40327375,0.00017199,2]
[393231107,1762359033130,-572.17571964,0.00017199,2]
[393231108,1762359033140,-1000.0,0.000172,2]
[393231109,1762359033149,-2185.9987,0.000172,2]
[393231110,1762359033158,-281753.65265181,0.000172,2]
[393231111,1762359033170,-34749.57084776,0.000172,2]
[393231112,1762359033181,-50665.10079728,0.000172,2]
[393231113,1762359033193,-30474.54967433,0.000172,2]
[393231114,1762359033203,-2972.65354719,0.000172,2]
[393231115,1762359033214,-364.5,0.000172,2]
[393231116,1762359033225,-4600.0,0.000172,2]
[393231135,1762359038344,-500.0,0.00017091,2]
[393231137,1762359038354,-500.0,0.00017091,2]
[393231138,1762359038367,-351.08,0.00017091,2]
[393231139,1762359038432,-148.92,0.00017091,2]
[393231140,1762359038442,-204.10604549,0.00017091,2]
[393231141,1762359038454,-295.89395451,0.00017091,2]
[393231142,1762359038463,-500.0,0.00017091,2]
[393231143,1762359038473,-455.76972316,0.00017091,2]
[393231144,1762359038486,-500.0,0.00017091,2]
[393231145,1762359038495,-500.0,0.00017091,2]
[393231146,1762359038505,-362.33098598,0.00017091,2]
[393231147,1762359038514,-372.57145163,0.00017091,2]
[393231148,1762359038525,-500.0,0.00017091,2]
[393231149,1762359038535,-500.0,0.00017091,2]
[393231150,1762359038544,-500.0,0.00017091,2]
[393231151,1762359038554,-500.0,0.00017091,2]
[393231152,1762359038565,-500.0,0.00017091,2]
[393231153,1762359038575,-500.0,0.00017091,2]
[393231154,1762359038584,-500.0,0.00017091,2]
[393231155,1762359038595,-500.0,0.00017091,2]
[393231156,1762359038604,-500.0,0.00017091,2]
[393231158,1762359038615,-500.0,0.00017091,2]
[393231160,1762359038625,-500.0,0.00017091,2]
[393231162,1762359038635,-500.0,0.00017091,2]
[393231164,1762359038644,-500.0,0.00017091,2]